fUST/lending_fUST_20250419
["ID","MTS","AMOUNT","RATE_DAILY","PERIOD"]
[358388152,1745051454339,-500.0,0.00021917,2]
[358388153,1745051454351,-500.0,0.00021917,2]
[358388154,1745051454360,-500.0,0.00021917,2]
[358388155,1745051454371,-500.0,0.00021917,2]
[358388156,1745051454381,-504.32503812,0.00021917,2]
[358388157,1745051454390,-500.0,0.00021917,2]
[358388158,1745051454399,-500.0,0.00021917,2]
[358388159,1745051454408,-504.51027709,0.00021917,2]
[358388160,1745051454418,-500.0,0.00021917,2]
[358388161,1745051454428,-506.47350981,0.00021917,2]
[358388162,1745051454438,-500.0,0.00021917,2]
[358388163,1745051454448,-471.56171697,0.00021917,2]
[358388164,1745051454458,-871.25,0.00021917,2]
[358388165,1745051454469,-518.68,0.00021917,2]
[358388166,1745051454479,-649.36446715,0.00021917,2]
[358388167,1745051454489,-504.17287472,0.00021917,2]
[358388168,1745051454499,-500.0,0.00021917,2]
[358388169,1745051454509,-666.8,0.00021917,2]
[358388170,1745051454520,-500.0,0.00021917,2]
[358388171,1745051454532,-946.15,0.00021917,2]
[358388172,1745051454542,-1191.35,0.00021917,2]
[358388173,1745051454557,-500.0,0.00021917,2]
[358388174,1745051454568,-500.0,0.00021917,2]
[358388175,1745051454579,-500.0,0.00021917,2]
[358388176,1745051454589,-500.0,0.00021917,2]
[358388177,1745051454600,-1089.76,0.00021917,2]
[358388178,1745051454610,-505.2774059,0.00021917,2]
[358388179,1745051454620,-598.0,0.00021917,2]
[358388180,1745051454630,-598.0,0.00021917,2]
[358388181,1745051454640,-598.0,0.00021917,2]
[358388182,1745051454649,-598.0,0.00021917,2]
[358388183,1745051454659,-598.0,0.00021917,2]
[358388184,1745051454668,-598.0,0.00021917,2]
[358388185,1745051454678,-598.0,0.00021917,2]
[358388186,1745051454687,-522.37775583,0.00021917,2]
[358388187,1745051454697,-500.0,0.00021917,2]
[358388188,1745051454706,-598.0,0.00021917,2]
[358388189,1745051454715,-598.0,0.00021917,2]
[358388190,1745051454725,-598.0,0.00021917,2]
[358388191,1745051454734,-598.0,0.00021917,2]
[358388192,1745051454744,-598.0,0.00021917,2]
[358388193,1745051454753,-598.0,0.00021917,2]
[358388194,1745051454763,-500.0,0.00021917,2]
[358388195,1745051454773,-598.0,0.00021917,2]
[358388196,1745051454783,-598.0,0.00021917,2]
[358388197,1745051454793,-598.0,0.00021917,2]
[358388198,1745051454802,-598.0,0.00021917,2]
[358388199,1745051454812,-598.0,0.00021917,2]
[358388200,1745051454822,-500.0,0.00021917,2]
[358388201,1745051454833,-598.0,0.00021917,2]
[358388202,1745051454843,-598.0,0.00021917,2]
[358388203,1745051454853,-598.0,0.00021917,2]
[358388204,1745051454864,-598.0,0.00021917,2]
[358388205,1745051454874,-598.0,0.00021917,2]
[358388206,1745051454884,-500.0,0.00021917,2]
[358388207,1745051454895,-598.17380343,0.00021917,2]
[358388208,1745051454904,-907.356966,0.00021918,2]
[358388209,1745051454914,-386.152933,0.00021918,2]
[358388210,1745051454924,-386.152933,0.00021918,2]
[358388211,1745051454933,-386.152933,0.00021918,2]
[358388212,1745051454943,-386.152933,0.00021918,2]
[358388213,1745051454952,-386.152933,0.00021918,2]
[358388214,1745051454963,-386.152933,0.00021918,2]
[358388215,1745051454973,-386.152933,0.00021918,2]
[358388216,1745051454982,-386.152933,0.00021918,2]
[358388217,1745051454992,-386.152933,0.00021918,2]
[358388218,1745051455002,-386.152933,0.00021918,2]
[358388219,1745051455012,-386.152933,0.00021918,2]
[358388220,1745051455022,-386.152933,0.00021918,2]
[358388221,1745051455031,-386.152933,0.00021918,2]
[358388222,1745051455041,-386.152933,0.00021918,2]
[358388223,1745051455051,-386.152933,0.00021918,2]
[358388224,1745051455060,-386.152933,0.00021918,2]
[358388225,1745051455070,-386.152933,0.00021918,2]
[358388226,1745051455080,-386.152933,0.00021918,2]
[358388227,1745051455089,-386.152933,0.00021918,2]
[358388228,1745051455099,-386.152934,0.00021918,2]
[358388229,1745051455109,-400.63536163,0.00021918,7]
[358388230,1745051455118,-519.593,0.00021918,2]
[358388231,1745051455128,-161.26588699,0.00021918,2]
[358388232,1745051455138,-153.85637321,0.00021918,2]
[358388233,1745051455147,-198.0,0.00021942,2]
[358388234,1745051455157,-198.0,0.00021942,2]
[358388235,1745051455166,-500.0,0.00021942,2]
[358388236,1745051455176,-500.0,0.00021942,2]
[358388237,1745051455186,-198.0,0.00021942,2]
[358388238,1745051455195,-500.0,0.00021947,2]
[358388239,1745051455205,-151.0,0.00021947,2]
[358388240,1745051455215,-151.08700513,0.00021973,2]
[358388241,1745051455226,-840.96132842,0.00021973,2]
[358388242,1745051455235,-1000.0,0.00022,22]
[358388243,1745051455246,-19250.002521,0.00022,2]
[358388244,1745051455256,-157.327778,0.00022,14]
[358388245,1745051455267,-839.40992179,0.00022,7]
[358388246,1745051455277,-45158.68765818,0.00022,7]
[358388247,1745051455286,-500.0,0.00022079,2]
[358388248,1745051455296,-500.0,0.00022079,2]
[358388249,1745051455306,-500.0,0.00022084,2]
[358388250,1745051455315,-151.0,0.00022084,2]
[358388251,1745051455325,-76012.054306,0.000221,2]
[358388252,1745051455335,-250.0,0.000221,2]
[358388253,1745051455346,-250.0,0.000221,2]
[358388254,1745051455355,-12500.0,0.00022165,2]
[358388255,1745051455366,-12500.0,0.00022173,2]
[358388256,1745051455377,-12500.0,0.00022182,2]
[358388257,1745051455387,-500.0,0.00022191,2]
[358388258,1745051455397,-500.0,0.00022191,2]
[358388259,1745051455407,-500.0,0.00022191,2]
[358388260,1745051455417,-587.99,0.00022191,2]
[358388261,1745051455427,-500.0,0.00022191,2]
[358388262,1745051455436,-500.0,0.00022191,2]
[358388263,1745051455446,-743.4,0.00022191,2]
[358388264,1745051455456,-500.0,0.00022191,2]
[358388265,1745051455466,-500.0,0.00022191,2]
[358388266,1745051455475,-500.0,0.00022191,2]
[358388267,1745051455485,-500.0,0.00022191,2]
[358388268,1745051455495,-946.73,0.00022191,2]
[358388269,1745051455505,-160.47,0.00022191,2]
[358388270,1745051455514,-500.0,0.00022191,2]
[358388271,1745051455524,-500.0,0.00022191,2]
[358388272,1745051455534,-826.06,0.00022191,2]
[358388273,1745051455545,-500.0,0.00022191,2]
[358388274,1745051455556,-500.0,0.00022191,2]
[358388275,1745051455565,-500.0,0.00022191,2]
[358388276,1745051455575,-500.0,0.00022191,2]
[358388277,1745051455585,-500.0,0.00022191,2]
[358388278,1745051455594,-787.75,0.00022191,2]
[358388279,1745051455603,-500.0,0.00022191,2]
[358388280,1745051455612,-500.0,0.00022191,2]
[358388281,1745051455622,-500.0,0.00022191,2]
[358388282,1745051455631,-500.0,0.00022191,2]
[358388283,1745051455641,-500.0,0.00022191,2]
[358388284,1745051455650,-500.0,0.00022191,2]
[358388285,1745051455660,-500.0,0.00022191,2]
[358388286,1745051455669,-500.0,0.00022191,2]
[358388287,1745051455679,-500.0,0.00022191,2]
[358388288,1745051455688,-500.0,0.00022191,2]
[358388289,1745051455698,-500.0,0.00022191,2]
[358388290,1745051455707,-525.31,0.00022191,2]
[358388291,1745051455717,-500.0,0.00022191,2]
[358388292,1745051455726,-500.0,0.00022191,2]
[358388293,1745051455736,-500.0,0.00022191,2]
[358388294,1745051455745,-500.0,0.00022191,2]
[358388295,1745051455754,-500.0,0.00022191,2]
[358388296,1745051455764,-500.0,0.00022191,2]
[358388297,1745051455773,-500.0,0.00022191,2]
[358388298,1745051455783,-385.91685179,0.00022191,2]
[358388299,1745051455793,-500.0,0.00022191,2]
[358388300,1745051455802,-505.26810038,0.00022191,2]
[358388301,1745051455812,-999.87,0.00022191,2]
[358388302,1745051455822,-674.25,0.00022191,2]
[358388303,1745051455832,-500.0,0.00022191,2]
[358388304,1745051455844,-761.87,0.00022191,2]
[358388305,1745051455854,-1246.86,0.00022191,2]
[358388306,1745051455864,-500.0,0.00022191,2]
[358388307,1745051455874,-610.86,0.00022191,2]
[358388308,1745051455883,-500.0,0.00022191,2]
[358388309,1745051455893,-500.0,0.00022191,2]
[358388310,1745051455903,-12500.0,0.00022191,2]
[358388311,1745051455913,-500.0,0.00022191,2]
[358388312,1745051455923,-500.0,0.00022191,2]
[358388313,1745051455933,-500.0,0.00022191,2]
[358388314,1745051455944,-500.0,0.00022191,2]
[358388315,1745051455954,-500.0,0.00022191,2]
[358388316,1745051455964,-500.0,0.00022191,2]
[358388317,1745051455974,-946.01,0.00022191,2]
[358388318,1745051455983,-500.0,0.00022191,2]
[358388319,1745051455993,-500.0,0.00022191,2]
[358388320,1745051456003,-500.0,0.00022191,2]
[358388321,1745051456013,-500.0,0.00022191,2]
[358388322,1745051456022,-2068.26,0.00022191,2]
[358388323,1745051456033,-876.88,0.00022191,2]
[358388324,1745051456042,-495.0,0.00022191,2]
[358388325,1745051456052,-500.0,0.00022191,2]
[358388326,1745051456063,-758.24,0.00022191,2]
[358388327,1745051456073,-615.92,0.00022191,2]
[358388328,1745051456082,-500.0,0.00022191,2]
[358388329,1745051456091,-504.61020388,0.00022191,2]
[358388330,1745051456101,-500.0,0.00022191,2]
[358388331,1745051456111,-500.0,0.00022191,2]
[358388332,1745051456120,-503.13,0.00022191,2]
[358388333,1745051456130,-502.46209574,0.00022191,2]
[358388334,1745051456140,-547.49,0.00022191,2]
[358388335,1745051456150,-500.0,0.00022191,2]
[358388336,1745051456159,-500.0,0.00022191,2]
[358388337,1745051456169,-500.0,0.00022191,2]
[358388338,1745051456178,-228.01867832,0.00022191,2]
[358388339,1745051456188,-500.0,0.00022191,2]
[358388340,1745051456197,-500.0,0.00022191,2]
[358388341,1745051456206,-500.0,0.00022191,2]
[358388342,1745051456216,-500.0,0.00022191,2]
[358388343,1745051456225,-500.0,0.00022191,2]
[358388344,1745051456235,-500.0,0.00022191,2]
[358388345,1745051456244,-500.0,0.00022191,2]
[358388346,1745051456255,-500.0,0.00022191,2]
[358388347,1745051456264,-500.0,0.00022191,2]
[358388348,1745051456273,-500.0,0.00022191,2]
[358388349,1745051456283,-500.0,0.00022191,2]
[358388350,1745051456293,-507.16931333,0.00022191,2]
[358388351,1745051456303,-600.97,0.00022191,2]
[358388352,1745051456312,-500.0,0.00022191,2]
[358388353,1745051456322,-500.0,0.00022191,2]
[358388354,1745051456332,-965.62,0.00022191,2]
[358388355,1745051456341,-1041.84,0.00022191,2]
[358388356,1745051456351,-500.0,0.00022191,2]
[358388357,1745051456360,-506.31484319,0.00022191,2]
[358388358,1745051456369,-500.0,0.00022191,2]
[358388359,1745051456379,-500.0,0.00022191,2]
[358388360,1745051456389,-500.0,0.00022191,2]
[358388361,1745051456399,-500.0,0.00022191,2]
[358388362,1745051456408,-500.0,0.00022191,2]
[358388363,1745051456417,-500.0,0.00022191,2]
[358388364,1745051456427,-564.84,0.00022191,2]
[358388365,1745051456437,-573.43,0.00022191,2]
[358388366,1745051456446,-500.0,0.00022191,2]
[358388367,1745051456455,-500.0,0.00022191,2]
[358388368,1745051456465,-1158.12,0.00022191,2]
[358388369,1745051456475,-500.0,0.00022191,2]
[358388370,1745051456484,-612.21,0.00022191,2]
[358388371,1745051456494,-500.0,0.00022191,2]
[358388372,1745051456503,-1243.57,0.00022191,2]
[358388373,1745051456512,-3093.32,0.00022191,2]
[358388374,1745051456522,-639.42,0.00022191,2]
[358388375,1745051456531,-500.0,0.00022191,2]
[358388376,1745051456541,-500.11913924,0.00022191,2]
[358388377,1745051456554,-502.6369472,0.00022191,2]
[358388378,1745051456564,-500.0,0.00022191,2]
[358388379,1745051456573,-874.72,0.00022191,2]
[358388380,1745051456582,-500.0,0.00022191,2]
[358388381,1745051456592,-823.23,0.00022191,2]
[358388382,1745051456601,-500.0,0.00022191,2]
[358388383,1745051456611,-500.0,0.00022191,2]
[358388384,1745051456620,-500.0,0.00022191,2]
[358388385,1745051456630,-500.0,0.00022191,2]
[358388386,1745051456639,-500.0,0.00022191,2]
[358388387,1745051456649,-500.0,0.00022191,2]
[358388388,1745051456659,-500.0,0.00022191,2]
[358388389,1745051456668,-500.0,0.00022191,2]
[358388390,1745051456678,-500.0,0.00022191,2]
[358388391,1745051456687,-437.95489577,0.00022191,2]
[358388392,1745051456696,-500.0,0.00022191,2]
[358388393,1745051456706,-490.34240792,0.00022191,2]
[358388394,1745051456715,-502.09969884,0.00022191,2]
[358388395,1745051456726,-228.53723621,0.00022191,2]
[358388396,1745051456735,-500.0,0.00022191,2]
[358388397,1745051456745,-500.0,0.00022191,2]
[358388398,1745051456754,-500.0,0.00022191,2]
[358388399,1745051456764,-500.0,0.00022191,2]
[358388400,1745051456773,-500.0,0.00022191,2]
[358388401,1745051456782,-500.0,0.00022191,2]
[358388402,1745051456792,-511.03297166,0.00022191,2]
[358388403,1745051456801,-888.22,0.00022191,2]
[358388404,1745051456811,-500.0,0.00022191,2]
[358388405,1745051456820,-500.0,0.00022191,2]
[358388406,1745051456830,-500.80925947,0.00022191,2]
[358388407,1745051456839,-500.0,0.00022191,2]
[358388408,1745051456849,-500.0,0.00022191,2]
[358388409,1745051456859,-667.21,0.00022191,2]
[358388410,1745051456868,-258.91961652,0.00022191,2]
[358388411,1745051456877,-509.54024372,0.00022191,2]
[358388412,1745051456887,-500.0,0.00022191,2]
[358388413,1745051456896,-1464.86,0.00022191,2]
[358388414,1745051456906,-500.0,0.00022191,2]
[358388415,1745051457030,-558.35976085,0.00022191,2]
[358388416,1745051457040,-500.0,0.00022191,2]
[358388417,1745051457050,-500.0,0.00022191,2]
[358388418,1745051457060,-690.34,0.00022191,2]
[358388419,1745051457071,-500.0,0.00022191,2]
[358388420,1745051457080,-500.0,0.00022191,2]
[358388421,1745051457090,-502.90051362,0.00022191,2]
[358388422,1745051457100,-714.14,0.00022191,2]
[358388423,1745051457110,-673.54,0.00022191,2]
[358388424,1745051457120,-262.75114818,0.00022191,2]
[358388425,1745051457130,-725.73,0.00022191,2]
[358388426,1745051457146,-500.0,0.00022191,2]
[358388427,1745051457157,-500.0,0.00022191,2]
[358388428,1745051457167,-501.01032754,0.00022191,2]
[358388429,1745051457178,-1105.24,0.00022191,2]
[358388430,1745051457189,-500.0,0.00022191,2]
[358388431,1745051457198,-500.0,0.00022191,2]
[358388432,1745051457207,-500.0,0.00022191,2]
[358388433,1745051457217,-500.0,0.00022191,2]
[358388434,1745051457227,-500.0,0.00022191,2]
[358388435,1745051457237,-750.26,0.00022191,2]
[358388436,1745051457247,-500.0,0.00022191,2]
[358388437,1745051457256,-815.22,0.00022191,2]
[358388438,1745051457266,-500.0,0.00022191,2]
[358388439,1745051457276,-500.0,0.00022191,2]
[358388440,1745051457285,-500.0,0.00022191,2]
[358388441,1745051457295,-506.1649512,0.00022191,2]
[358388442,1745051457305,-500.0,0.00022191,2]
[358388443,1745051457315,-500.0,0.00022191,2]
[358388444,1745051457324,-500.0,0.00022191,2]
[358388445,1745051457334,-500.0,0.00022191,2]
[358388446,1745051457344,-500.0,0.00022191,2]
[358388447,1745051457354,-500.0,0.00022191,2]
[358388448,1745051457365,-500.0,0.00022191,2]
[358388449,1745051457375,-500.0,0.00022191,2]
[358388450,1745051457385,-500.0,0.00022191,2]
[358388451,1745051457395,-500.0,0.00022191,2]
[358388452,1745051457404,-504.7504495,0.00022191,2]
[358388453,1745051457414,-503.25981306,0.00022191,2]
[358388454,1745051457424,-500.0,0.00022191,2]
[358388455,1745051457434,-500.0,0.00022191,2]
[358388456,1745051457443,-500.0,0.00022191,2]
[358388457,1745051457454,-500.0,0.00022191,2]
[358388458,1745051457464,-500.0,0.00022191,2]
[358388459,1745051457474,-501.82762718,0.00022191,2]
[358388460,1745051457484,-500.0,0.00022191,2]
[358388461,1745051457494,-500.0,0.00022191,2]
[358388462,1745051457504,-502.51718873,0.00022191,2]
[358388463,1745051457514,-159.45097291,0.00022191,2]
[358388464,1745051457523,-503.99911441,0.00022191,2]
[358388465,1745051457533,-501.65382186,0.00022191,2]
[358388466,1745051457542,-500.0,0.00022191,2]
[358388467,1745051457558,-525.64,0.00022191,2]
[358388468,1745051457567,-503.19744062,0.00022191,2]
[358388469,1745051457577,-501.95462423,0.00022191,2]
[358388470,1745051457587,-500.0,0.00022191,2]
[358388471,1745051457598,-500.89510504,0.00022191,2]
[358388472,1745051457608,-500.0,0.00022191,2]
[358388473,1745051457618,-500.0,0.00022191,2]
[358388474,1745051457627,-500.0,0.00022191,2]
[358388475,1745051457637,-502.89979697,0.00022191,2]
[358388476,1745051457646,-500.0,0.00022191,2]
[358388477,1745051457657,-500.0,0.00022191,2]
[358388478,1745051457667,-500.0,0.00022191,2]
[358388479,1745051457677,-509.59284361,0.00022191,2]
[358388480,1745051457687,-500.0,0.00022191,2]
[358388481,1745051457698,-500.0,0.00022191,2]
[358388482,1745051457708,-771.79,0.00022191,2]
[358388483,1745051457718,-351.99411292,0.00022191,2]
[358388484,1745051457728,-500.0,0.00022191,2]
[358388485,1745051457738,-500.0,0.00022191,2]
[358388486,1745051457748,-500.0,0.00022191,2]
[358388487,1745051457758,-503.95762272,0.00022191,2]
[358388488,1745051457768,-500.0,0.00022191,2]
[358388489,1745051457778,-578.61,0.00022191,2]
[358388490,1745051457787,-500.0,0.00022191,2]
[358388491,1745051457797,-500.0,0.00022191,2]
[358388492,1745051457806,-500.0,0.00022191,2]
[358388493,1745051457816,-500.0,0.00022191,2]
[358388494,1745051457826,-500.0,0.00022191,2]
[358388495,1745051457836,-505.21137205,0.00022191,2]
[358388496,1745051457846,-500.6801467,0.00022191,2]
[358388497,1745051457856,-500.0,0.00022191,2]
[358388498,1745051457866,-500.0,0.00022191,2]
[358388499,1745051457875,-500.0,0.00022191,2]
[358388500,1745051457885,-500.0,0.00022191,2]
[358388501,1745051457894,-1401.21,0.00022191,2]
[358388502,1745051457904,-1025.14,0.00022191,2]
[358388503,1745051457914,-500.0,0.00022191,2]
[358388504,1745051457924,-500.0,0.00022191,2]
[358388505,1745051457934,-500.0,0.00022191,2]
[358388506,1745051457943,-500.0,0.00022191,2]
[358388507,1745051457953,-500.0,0.00022191,2]
[358388508,1745051457963,-513.01937672,0.00022191,2]
[358388509,1745051457972,-500.0,0.00022191,2]
[358388510,1745051457982,-500.0,0.00022191,2]
[358388511,1745051457992,-513.80932553,0.00022191,2]
[358388512,1745051458002,-500.0,0.00022191,2]
[358388513,1745051458012,-500.0,0.00022191,2]
[358388514,1745051458022,-500.0,0.00022191,2]
[358388515,1745051458031,-502.51889699,0.00022191,2]
[358388516,1745051458040,-644.84,0.00022191,2]
[358388517,1745051458050,-501.48124659,0.00022191,2]
[358388518,1745051458059,-500.0,0.00022191,2]
[358388519,1745051458069,-500.0,0.00022191,2]
[358388520,1745051458078,-500.0,0.00022191,2]
[358388521,1745051458087,-500.0,0.00022191,2]
[358388522,1745051458097,-500.0,0.00022191,2]
[358388523,1745051458107,-500.0,0.00022191,2]
[358388524,1745051458117,-500.0,0.00022191,2]
[358388525,1745051458126,-500.0,0.00022191,2]
[358388526,1745051458135,-616.22,0.00022191,2]
[358388527,1745051458144,-742.35,0.00022191,2]
[358388528,1745051458155,-502.80788592,0.00022191,2]
[358388529,1745051458165,-500.0,0.00022191,2]
[358388530,1745051458174,-262.12630888,0.00022191,2]
[358388531,1745051458184,-500.0,0.00022191,2]
[358388532,1745051458194,-1378.81,0.00022191,2]
[358388533,1745051458203,-1053.68,0.00022191,2]
[358388534,1745051458213,-500.0,0.00022191,2]
[358388535,1745051458222,-500.0,0.00022191,2]
[358388536,1745051458232,-500.0,0.00022191,2]
[358388537,1745051458242,-501.90408997,0.00022191,2]
[358388538,1745051458252,-500.0,0.00022191,2]
[358388539,1745051458261,-1164.87,0.00022191,2]
[358388540,1745051458271,-1494.79,0.00022191,2]
[358388541,1745051458281,-500.0,0.00022191,2]
[358388542,1745051458290,-500.0,0.00022191,2]
[358388543,1745051458299,-500.0,0.00022191,2]
[358388544,1745051458309,-500.0,0.00022191,2]
[358388545,1745051458318,-500.0,0.00022191,2]
[358388546,1745051458328,-500.0,0.00022191,2]
[358388547,1745051458339,-500.0,0.00022191,2]
[358388548,1745051458348,-2041.56,0.00022191,2]
[358388549,1745051458357,-500.0,0.00022191,2]
[358388550,1745051458366,-4345.85,0.00022191,2]
[358388551,1745051458376,-1086.87,0.00022191,2]
[358388552,1745051458386,-500.0,0.00022191,2]
[358388553,1745051458396,-539.25628607,0.00022191,2]
[358388554,1745051458406,-500.0,0.00022191,2]
[358388555,1745051458415,-253.6891793,0.00022191,2]
[358388556,1745051458425,-501.76038248,0.00022191,2]
[358388557,1745051458434,-500.0,0.00022191,2]
[358388558,1745051458444,-4121.74,0.00022191,2]
[358388559,1745051458453,-500.0,0.00022191,2]
[358388560,1745051458463,-500.0,0.00022191,2]
[358388561,1745051458472,-500.0,0.00022191,2]
[358388562,1745051458482,-500.0,0.00022191,2]
[358388563,1745051458491,-500.0,0.00022191,2]
[358388564,1745051458501,-500.0,0.00022191,2]
[358388565,1745051458511,-500.0,0.00022191,2]
[358388566,1745051458520,-500.0,0.00022191,2]
[358388567,1745051458529,-500.0,0.00022191,2]
[358388568,1745051458539,-500.0,0.00022191,2]
[358388569,1745051458551,-828.65,0.00022191,2]
[358388570,1745051458560,-609.38,0.00022191,2]
[358388571,1745051458570,-500.0,0.00022191,2]
[358388572,1745051458579,-817.47,0.00022191,2]
[358388573,1745051458589,-500.0,0.00022191,2]
[358388574,1745051458598,-633.04,0.00022191,2]
[358388575,1745051458608,-1388.9,0.00022191,2]
[358388576,1745051458617,-500.0,0.00022191,2]
[358388577,1745051458627,-500.0,0.00022191,2]
[358388578,1745051458637,-504.40583052,0.00022191,2]
[358388579,1745051458646,-500.0,0.00022191,2]
[358388580,1745051458656,-505.1083004,0.00022191,2]
[358388581,1745051458666,-501.27,0.00022191,2]
[358388582,1745051458675,-500.0,0.00022191,2]
[358388583,1745051458685,-501.08050975,0.00022191,2]
[358388584,1745051458695,-2695.84,0.00022191,2]
[358388585,1745051458705,-501.90059196,0.00022191,2]
[358388586,1745051458715,-500.0,0.00022191,2]
[358388587,1745051458725,-184.23798002,0.00022191,2]
[358388588,1745051458735,-760.46,0.00022191,2]
[358388589,1745051458745,-615.96,0.00022191,2]
[358388590,1745051458754,-503.65906225,0.00022191,2]
[358388591,1745051458763,-511.54472949,0.00022191,2]
[358388592,1745051458773,-500.0,0.00022191,2]
[358388593,1745051458784,-500.0,0.00022191,2]
[358388594,1745051458794,-500.0,0.00022191,2]
[358388595,1745051458804,-155.27426132,0.00022191,2]
[358388596,1745051459897,-151.0,0.00021673,2]
[358388597,1745051459908,-151.0,0.00021698,2]
[358388598,1745051459918,-202.888917,0.00021698,2]
[358388599,1745051459928,-58.0604586,0.00021917,2]
[358388600,1745051460473,-177.580266,0.00021916,2]
[358388601,1745051460483,-441.9395414,0.00021917,2]
[358388602,1745051460493,-180.5480036,0.00021917,2]
[358388612,1745051978945,2000.0,0.0001801,2]
[358388613,1745052018464,234.69,0.0001801,2]
[358388630,1745052567181,279.38,0.0001801,2]
[358388633,1745052632610,-176.46508175,0.0001899,2]
[358388634,1745052632621,-850.63924185,0.00019877,2]
[358388635,1745052632632,-250.0,0.0001991,2]
[358388636,1745052632642,-300.0,0.00020505,2]
[358388637,1745052632653,-300.0,0.00020505,2]
[358388638,1745052632664,-1254.58987035,0.00020506,2]
[358388639,1745052632678,-8464.31915185,0.00020506,2]
[358388640,1745052632689,-1240.18633073,0.0002138,2]
[358388641,1745052632699,-197.62,0.00021386,2]
[358388642,1745052632709,-500.0,0.00021478,2]
[358388643,1745052632720,-500.0,0.00021478,2]
[358388644,1745052632733,-500.0,0.00021478,2]
[358388645,1745052632743,-500.0,0.00021478,2]
[358388646,1745052632754,-500.0,0.00021478,2]
[358388647,1745052632765,-500.0,0.00021478,2]
[358388648,1745052632775,-500.0,0.00021478,2]
[358388649,1745052632786,-500.0,0.00021478,2]
[358388650,1745052632795,-500.0,0.00021478,2]
[358388651,1745052632806,-500.0,0.00021478,2]
[358388652,1745052632817,-500.0,0.00021478,2]
[358388653,1745052632826,-187.2,0.00021478,2]
[358388654,1745052632836,-27496.62162462,0.00021478,2]
[358388655,1745052632845,-156.87,0.00021478,2]
[358388656,1745052632855,-160.0,0.0002148,2]
[358388657,1745052632866,-160.0,0.0002148,2]
[358388658,1745052632876,-420.4931809,0.0002148,2]
[358388659,1745052632885,-160.0,0.0002148,2]
[358388660,1745052632905,-839.40992179,0.0002148,2]
[358388661,1745052632916,-160.0,0.0002148,2]
[358388662,1745052632926,-160.0,0.00021661,2]
[358388663,1745052632936,-150.352,0.00021728,2]
[358388664,1745052632946,-200.0,0.000219,2]
[358388665,1745052632956,-8259.07734302,0.000219,3]
[358388666,1745052632966,-155.56643927,0.00021904,2]
[358388667,1745052632976,-223.59160222,0.00021916,2]
[358388668,1745052632986,-504.81899838,0.00021916,2]
[358388669,1745052632996,-500.0,0.00021916,2]
[358388670,1745052633006,-602.67434556,0.00021916,2]
[358388671,1745052633016,-500.0,0.00021916,2]
[358388672,1745052633026,-500.0,0.00021916,2]
[358388673,1745052633036,-500.0,0.00021916,2]
[358388674,1745052633047,-500.0,0.00021916,2]
[358388675,1745052633057,-500.0,0.00021916,2]
[358388676,1745052633067,-300.0,0.00021916,2]
[358388677,1745052633076,-631.85856331,0.00021917,2]
[358388678,1745052633087,-501.24308482,0.00021917,2]